Cogmind - Beta 10.2 @@@ ROGUE MODE // 2020.12.13 @ 21:31:49 Player: Runia Result: Destroyed by G-50 Soldier with Heavy Laser Performance ------------- Evolutions (2) 1000 Regions Visited (5) 1000 Robots Destroyed (100) 500 Value Destroyed (3449) 3449 Prototype IDs (4) 80 Alien Tech Used (0) 0 Bonus (1243) 1243 TOTAL SCORE: 7272 Bonus ------- High Alert Combat Kills 510 Follower Combat Kills 33 Entered Garrisons 200 Used RIF Installer 500 Cogmind --------- Core Integrity 0/550 Matter 264/300 Energy 260/280 System Corruption 0% Temperature Cool (16) Movement Treading (185) Ox2 Location -8/Storage Parts ------- > --- POWER (1) -------- Heavy Ion Engine > --- PROPULSION (2) --- Advanced Treads Advanced Treads > --- UTILITY (6) ------ High-capacity Storage Unit High-capacity Storage Unit High-capacity Storage Unit Advanced Signal Interpreter Advanced Targeting Computer Target Analyzer > --- WEAPON (2) ------- Heavy Assault Rifle Heavy Assault Rifle > --- INVENTORY (28) --- Heavy Ion Engine Light Angular Momentum Engine Advanced Treads Cryofiber Web High-capacity Matter Pod (200) Compact Matter Pod (150) Advanced Targeting Computer ECM Suite Improved Weapon Shielding Improved Weapon Shielding Improved Weapon Shielding Improved Weapon Shielding Hacking Suite Relay Coupler [NC] (38) Relay Coupler [NC] (39) Relay Coupler [NC] (34) Relay Coupler [NC] (22) Relay Coupler [NC] (21) Relay Coupler [NC] (21) Relay Coupler [NC] (24) Relay Coupler [Swarmer] (33) Relay Coupler [Swarmer] (37) Relay Coupler [Sentry] (23) Relay Coupler [Hunter] (16) Improved Assault Rifle Heavy Flail Peak State ------------ > --- POWER ------------ Heavy Ion Engine > --- PROPULSION ------- Advanced Treads Advanced Treads > --- UTILITY ---------- High-capacity Storage Unit High-capacity Storage Unit High-capacity Storage Unit Advanced Signal Interpreter Advanced Targeting Computer Target Analyzer > --- WEAPON ----------- Heavy Assault Rifle Improved Assault Rifle > --- INVENTORY -------- Heavy Ion Engine Light Angular Momentum Engine Advanced Treads Advanced Treads Cryofiber Web High-capacity Matter Pod Compact Matter Pod Advanced Targeting Computer ECM Suite Improved Weapon Shielding Hacking Suite Relay Coupler [NC] Relay Coupler [NC] Relay Coupler [NC] Relay Coupler [NC] Relay Coupler [NC] Relay Coupler [NC] Relay Coupler [NC] Relay Coupler [Swarmer] Relay Coupler [Swarmer] Relay Coupler [Sentry] Relay Coupler [Hunter] Heavy Assault Rifle Mini Grenade Launcher Heavy Flail [Rating: 32] Favorites ----------- Power Reinforced Ion Engine Engine Reinforced Ion Engine Power Core Light Nuclear Core Propulsion Light Treads Treads Light Treads Leg Carbon-fiber Leg Wheel Wheel Utility High-capacity Storage Unit Device Improved Heat Sink Storage High-capacity Storage Unit Processor Visual Processing Unit Protection Improved Utility Shielding Weapon Advanced Beam Cannon Energy Gun Improved Medium Laser Energy Cannon Advanced Beam Cannon Ballistic Gun Heavy Assault Rifle Launcher Mini Grenade Launcher Impact Weapon Heavy Flail Build | -11 -10 -9 -8 -8 -8 ------- Run | Scr Mat Mat Mat Gar Sto Slots Evolved 4 | . . 2 2 . . Power . | . . . . . . Propulsion . | . . . . . . Utility 4 | . . 2 2 . . Weapon . | . . . . . . Parts Attached 88 | 2 11 20 19 21 15 Power 9 | . 2 2 2 1 2 Engine 8 | . 2 2 2 . 2 Core 1 | . . . . 1 . Reactor . | . . . . . . Propulsion 22 | 2 4 5 3 5 3 Treads 15 | 1 2 3 2 4 3 Leg 1 | . . . . 1 . Wheel 6 | 1 2 2 1 . . Hover . | . . . . . . Flight . | . . . . . . Utility 21 | . 1 7 5 3 5 Device 10 | . . 5 2 1 2 Storage 3 | . . 1 2 . . Processor 5 | . 1 1 . . 3 Hackware . | . . . . . . Protection 3 | . . . 1 2 . Artifact . | . . . . . . Weapon 36 | . 4 6 9 12 5 Energy Gun 7 | . 3 3 . 1 . Energy Cannon 10 | . . 1 5 4 . Ballistic Gun 9 | . 1 1 1 3 3 Ballistic Cannon . | . . . . . . Launcher 8 | . . 1 1 4 2 Special Weapon . | . . . . . . Impact Weapon 2 | . . . 2 . . Slashing Weapon . | . . . . . . Piercing Weapon . | . . . . . . Special Melee Weapon . | . . . . . . Unidentified Prototypes 4 | . . 1 1 1 1 Parts Lost 28 | . . 3 10 7 8 Power 4 | . . 1 2 1 . Propulsion 7 | . . . 3 3 1 Utility 7 | . . 1 1 1 4 Weapon 10 | . . 1 4 2 3 Highest Loss Streak 4 | . . 3 3 4 3 Average Slot Usage (%) 98 | . 96 98 98 97 98 Engine 7 | . 14 10 8 3 7 Core 2 | . . . . 5 1 Treads 12 | . 13 11 10 12 17 Leg 1 | . . . . 4 . Wheel 5 | . 13 11 7 . . Device 10 | . . 13 16 9 5 Storage 22 | . 14 11 27 27 27 Processor 11 | . 12 18 9 6 13 Protection 4 | . . . 1 10 6 Energy Gun 3 | . 11 6 . 3 . Energy Cannon 5 | . . 3 7 8 2 Ballistic Gun 8 | . 15 11 8 4 15 Naked Turns . | . . . . . . Heaviest Build 117 | 11 13 51 115 114 117 Greatest Support 44 | 20 10 16 40 40 44 Greatest Overweight (x) 36 | 1 3 3 11 36 5 Average Overweight (x) 3 | . . 1 6 3 2 Largest Inventory Capacity 28 | 6 6 12 28 28 28 Average Capacity 21 | 6 6 7 27 28 28 Most Carried 28 | 6 6 12 26 28 28 Average Carried 17 | 5 5 7 20 21 25 Final Capacity 28 | 6 6 12 28 28 28 Final Carried 27 | 4 6 12 20 27 26 Class Distribution -------------------- 58% | Hauler-Mutant 31% | Mutant 9% | Scavenger-Mutant Dominant Class ---------------- Mutant | -10/Materials Mutant | -9/Materials Hauler-Mutant | -8/Materials Hauler-Mutant | -8/Garrison Hauler-Mutant | -8/Storage Resources | -11 -10 -9 -8 -8 -8 ----------- Run | Scr Mat Mat Mat Gar Sto Matter Collected 2280 | 200 97 191 560 888 344 Remotely . | . . . . . . Salvage Created 3270 | . 513 538 964 467 788 Parts 213 | . 25 63 59 28 38 Haulers Intercepted 4 | . . 2 1 . 1 Recyclers Shooed 5 | . 1 1 1 . 2 Parts Field Recycled . | . . . . . . Retrieved Matter . | . . . . . . Parts Self-Destructed . | . . . . . . Prevented . | . . . . . . Kills | -11 -10 -9 -8 -8 -8 ------- Run | Scr Mat Mat Mat Gar Sto Combat Hostiles Destroyed 82 | . 9 15 23 20 15 Guns 29 | . 7 6 8 3 5 Cannons 13 | . . 2 9 2 . AOE 40 | . 2 7 6 15 10 Classes Destroyed 14 | . 3 7 1 . 3 Worker 5 | . 1 . 1 . 3 Builder 3 | . . 2 1 . . Tunneler 1 | . . 1 . . . Hauler 4 | . . 2 1 . 1 Recycler 2 | . 1 . . . 1 Mechanic 1 | . . . . . 1 Operator 1 | . . . 1 . . Watcher 1 | . . 1 . . . Swarmer 21 | . . 8 6 7 . Grunt 44 | . 9 3 11 11 10 Brawler 2 | . . 1 1 . . Duelist 1 | . . . . . 1 Protector 1 | . . . . . 1 Sentry 13 | . . 3 5 2 3 Best Kill Streak 10 | . 4 9 7 6 10 Combat Bots Only 9 | . 4 8 7 6 9 Max Kills in Single Turn 3 | . 2 3 2 3 3 Gunslinging . | . . . . . . Exploded 3 | . 2 3 2 3 3 Melee . | . . . . . . Uniques/NPCs Destroyed . | . . . . . . Combat | -11 -10 -9 -8 -8 -8 -------- Run | Scr Mat Mat Mat Gar Sto Damage Taken 4628 | . 378 459 1716 879 1196 Core 687 | . 22 99 293 77 196 Absorbed by Shields 4 | . . . . 4 . Core Remaining (%) 88 | 100 91 75 . . . Volleys Fired 231 | . 27 45 80 37 42 Largest 2 | . 2 2 2 2 2 Hottest 136 | . 65 91 91 136 91 Shots Fired 414 | . 54 85 143 54 78 Gun 278 | . 54 69 69 17 69 Cannon 102 | . . 12 67 20 3 Launcher 34 | . . 4 7 17 6 Special . | . . . . . . Kinetic 216 | . 27 41 69 10 69 Thermal 111 | . . 14 67 27 3 Explosive 34 | . . 4 7 17 6 Electromagnetic 53 | . 27 26 . . . Robot Hit Streak 26 | . 12 14 11 9 26 Robot Miss Streak 6 | . 2 6 3 2 2 Penetration Max . | . . . . . . Secondary Targets . | . . . . . . Shots Hit Robots 291 | . 46 51 101 30 63 Core Hits 180 | . 22 30 50 36 42 Critical Hits 11 | . . 3 5 . 3 Critical Kills 3 | . . 2 1 . . Critical Parts Destroyed 7 | . . 1 3 . 3 Melee Attacks 6 | . . . 6 . . Impact 6 | . . . 6 . . Slashing . | . . . . . . Piercing . | . . . . . . Sneak Attacks 1 | . . . 1 . . Combat Hostiles . | . . . . . . Follow-up Attacks . | . . . . . . Damage Inflicted 8088 | . 602 1038 2463 1754 2231 Guns 2594 | . 435 483 701 162 813 Cannons 1460 | . . 162 1074 182 42 Explosions 3888 | . 167 393 542 1410 1376 Melee 137 | . . . 137 . . Ramming 9 | . . . 9 . . Kinetic 1917 | . 138 171 701 94 813 Thermal 1724 | . 167 191 1074 250 42 Explosive 3721 | . . 393 542 1410 1376 Electromagnetic 580 | . 297 283 . . . Impact 137 | . . . 137 . . Slashing . | . . . . . . Piercing . | . . . . . . Highest Corruption . | . . . . . . Average Corruption . | . . . . . . Corruption Purged . | . . . . . . Overload Shots . | . . . . . . Overflow Damage 120 | . . 32 43 36 9 Projectiles 12 | . . 1 11 . . Explosions 108 | . . 31 32 36 9 Melee . | . . . . . . Knockbacks . | . . . . . . Impact . | . . . . . . Kinetic . | . . . . . . Secondary . | . . . . . . Self-Inflicted Damage 474 | . 84 14 108 75 193 Shots 15 | . 2 2 3 2 6 Rammed 1 | . . . 1 . . Targets Rammed 1 | . . . 1 . . Kicked . | . . . . . . Crushed . | . . . . . . Highest Temperature 126 | . 126 66 54 45 29 Average Temperature 26 | . 49 25 15 14 14 Received Heat Transfer 1746 | . 165 117 702 357 405 Siege Activations . | . . . . . . Robots Corrupted . | . . . . . . Combat Hostiles . | . . . . . . Parts Fried 2 | . . 2 . . . Impact Corruptions . | . . . . . . Robots Melted . | . . . . . . Combat Hostiles . | . . . . . . Parts Melted 1 | . . . 1 . . Heat Transferred 2940 | . 100 370 1924 481 65 Parts Sabotaged . | . . . . . . Parts Stolen . | . . . . . . Parts Stripped . | . . . . . . Power Chain Reactions 2 | . 2 . . . . Missiles Intercepted . | . . . . . . Alert | -11 -10 -9 -8 -8 -8 ------- Run | Scr Mat Mat Mat Gar Sto Peak Influence 1080 | . 365 359 488 1080 940 Initial 526 | . . 154 148 280 526 Average 469 | . 145 198 155 808 738 Maximum Alert Level 3 | . 1 1 2 3 3 Low Security (%) 36 | 100 63 62 80 . . Level 1 17 | . 36 37 14 8 . Level 2 14 | . . . 5 28 27 Level 3 31 | . . . . 63 72 Level 4 . | . . . . . . Level 5 . | . . . . . . High Security . | . . . . . . Max Security . | . . . . . . Squads Dispatched 12 | . 3 2 4 . 3 Investigation 3 | . 2 1 . . . Extermination . | . . . . . . Reinforcement 4 | . 1 1 2 . . Assault 3 | . . . . . 3 Garrison 2 | . . . 2 . . Intercept . | . . . . . . Construction Impeded . | . . . . . . Haulers Reinforced . | . . . . . . Stealth | -11 -10 -9 -8 -8 -8 --------- Run | Scr Mat Mat Mat Gar Sto Distress Signals 7 | . 2 3 2 . . Communications Jammed . | . . . . . . Distress Signals . | . . . . . . Times Spotted 126 | . 20 19 40 22 25 Peak Tracking Total 9 | . 5 4 8 6 9 Tactical Retreats 16 | . 4 2 7 2 1 Traps | -11 -10 -9 -8 -8 -8 ------- Run | Scr Mat Mat Mat Gar Sto Traps Triggered 8 | . 3 . . 4 1 Indirectly . | . . . . . . Trap Hack Attempts . | . . . . . . Triggered . | . . . . . . Disarmed . | . . . . . . Reprogrammed . | . . . . . . Reused . | . . . . . . Traps Extracted . | . . . . . . Installed . | . . . . . . Triggered . | . . . . . . Machines | -11 -10 -9 -8 -8 -8 ---------- Run | Scr Mat Mat Mat Gar Sto Machines Disabled 7 | . 2 1 1 2 1 Max in Single Turn 1 | . 1 1 1 1 1 Garrison Relay 2 | . . . . 2 . Machines Sabotaged . | . . . . . . Garrisons Compromised . | . . . . . . Overloaded Fab Kills . | . . . . . . Fab Network Shutdowns . | . . . . . . Hacking | -11 -10 -9 -8 -8 -8 --------- Run | Scr Mat Mat Mat Gar Sto Machines Accessed 17 | . 5 5 5 . 2 Terminals 14 | . 5 4 3 . 2 Fabricators . | . . . . . . Repair Stations . | . . . . . . Recycling Units 1 | . . 1 . . . Scanalyzers 1 | . . . 1 . . Garrison Access 1 | . . . 1 . . Total Hacks 43 | . 13 12 15 . 3 Successful 20 | . 5 4 10 . 1 Failed 23 | . 8 8 5 . 2 Catastrophic 8 | . 3 4 . . 1 Database Lockouts . | . . . . . . Manual 13 | . 9 3 . . 1 Terminals 37 | . 13 10 11 . 3 Fabricators . | . . . . . . Repair Stations . | . . . . . . Recycling Units 2 | . . 2 . . . Scanalyzers 2 | . . . 2 . . Garrison Access 2 | . . . 2 . . Terminal Hacks 15 | . 5 2 7 . 1 Part Schematic 3 | . 2 1 . . . Robot Analysis 1 | . 1 . . . . Open Door 1 | . . . . . 1 Terminal Index 1 | . . . 1 . . Alert Level 2 | . . . 2 . . Unreport Threat 2 | . . . 2 . . Locate Traps 2 | . . . 2 . . Recall Investigation 1 | . 1 . . . . Zone Layout 2 | . 1 1 . . . Fabricator Hacks . | . . . . . . Repair Station Hacks . | . . . . . . Recycling Unit Hacks 2 | . . 2 . . . Report Inventory 1 | . . 1 . . . Retrieve Components 1 | . . 1 . . . Scanalyzer 2 | . . . 2 . . Insert Component 1 | . . . 1 . . Analyze 1 | . . . 1 . . Garrison Access Hacks 1 | . . . 1 . . Unlock Access 1 | . . . 1 . . Unauthorized Hacks . | . . . . . . Terminals . | . . . . . . Fabricators . | . . . . . . Repair Stations . | . . . . . . Recycling Units . | . . . . . . Scanalyzers . | . . . . . . Garrison Access . | . . . . . . Data Cores Recovered . | . . . . . . Used . | . . . . . . Hacking Detections 15 | . 5 5 5 . . Full Trace Events 2 | . 1 1 . . . Feedback Events . | . . . . . . Feedback Blocked . | . . . . . . Robot Schematics Acquired . | . . . . . . Robots Built . | . . . . . . Matter . | . . . . . . Time . | . . . . . . Total Robot Build Rating . | . . . . . . Part Schematics Acquired 4 | . 2 1 1 . . Parts Built . | . . . . . . Matter . | . . . . . . Time . | . . . . . . Total Part Build Rating . | . . . . . . Parts Repaired . | . . . . . . Time . | . . . . . . Parts Recycled . | . . . . . . Recycled Matter . | . . . . . . Retrieved Matter . | . . . . . . Retrieved Components 6 | . . 6 . . . Parts Scanalyzed 1 | . . . 1 . . Part Schematics Acquired 1 | . . . 1 . . Parts Damaged . | . . . . . . Bothacking | -11 -10 -9 -8 -8 -8 ------------ Run | Scr Mat Mat Mat Gar Sto Used RIF Installer 1 | . . . . 1 . Robots Hacked . | . . . . . . Non-combat . | . . . . . . Combat . | . . . . . . Robot Hacks Applied . | . . . . . . Relay Couplers Released 8 | . . . . 8 . Machine Destruction 8 | . . . . 8 . Robots Rewired . | . . . . . . Allies Hacked . | . . . . . . Hacks Repelled . | . . . . . . Allies | -11 -10 -9 -8 -8 -8 -------- Run | Scr Mat Mat Mat Gar Sto Total Allies 2 | . . . . . 2 Largest Group 2 | . . . . . 2 Highest-Rated Group 62 | . . . . . 62 Highest-Rated Ally 31 | . . . . . 31 Total Orders . | . . . . . . Ally Attacks 5 | . . . . . 5 Total Damage 107 | . . . . . 107 Kills 1 | . . . . . 1 Allies Corrupted . | . . . . . . Allies Melted . | . . . . . . Intel | -11 -10 -9 -8 -8 -8 ------- Run | Scr Mat Mat Mat Gar Sto Robot Analysis Total 1 | . 1 . . . . Derelict Logs Recovered . | . . . . . . Drone Launches . | . . . . . . Drone Recoveries . | . . . . . . Exploration | -11 -10 -9 -8 -8 -8 ------------- Run | Scr Mat Mat Mat Gar Sto Turns Passed 4311 | 6 349 1015 880 1602 459 Spaces Moved 1666 | 3 182 406 328 609 138 Core 2 | . 1 . . 1 . Treads 774 | . . . 28 608 138 Legs 2 | 2 . . . . . Wheels 888 | 1 181 406 300 . . Hover . | . . . . . . Flight . | . . . . . . Fastest Speed 80 | 90 80 80 170 200 185 Average Speed 173 | 110 90 109 174 237 191 Slowest Speed 1850 | 120 200 130 200 1850 260 Overloaded Moves . | . . . . . . Propulsion Burnouts . | . . . . . . Robots Hopped . | . . . . . . Cave-ins Triggered . | . . . . . . Exploration Rate (%) 37 | 2 36 44 42 76 23 Regions Visited 5 Branch Regions 1 Pre-discovered Areas . | . . . . . . Known Exits Taken 1 | . . . 1 . . Unknown Exits Taken 3 | 1 1 1 . . . Scrap Searched . | . . . . . . Spaces Dug 4 | . . . 4 . . Terrain Destroyed 206 | . 7 12 53 106 28 Melee 4 | . . . 4 . . Projectile . | . . . . . . AOE 202 | . 7 12 49 106 28 Terrain Rammed . | . . . . . . Walls Destroyed . | . . . . . . Machines Disabled . | . . . . . . Actions | -11 -10 -9 -8 -8 -8 --------- Run | Scr Mat Mat Mat Gar Sto Total 2675 | 6 317 901 486 710 255 Wait 560 | . 85 402 29 5 39 Move 1662 | 2 181 405 328 608 138 Hop . | . . . . . . Pick Up 79 | . 6 17 21 23 12 Fast Attach 8 | . 6 . . . 2 Attach 39 | 2 1 6 12 9 9 Detach . | . . . . . . Swap 41 | . 4 14 7 12 4 Drop 38 | 2 7 12 2 8 7 Fire 231 | . 27 45 80 37 42 Melee 6 | . . . 6 . . Ram . | . . . . . . Kick . | . . . . . . Crush 1 | . . . 1 . . Escape Stasis 10 | . . . . 8 2 Rewire . | . . . . . . Trap . | . . . . . . Miscellaneous . | . . . . . . Route ------- -11/Scrapyard -10/Materials -9/Materials -8/Materials (discovered 4 exits: [*Fac x2] / *Sto / Gar) -8/Garrison (discovered 3 exits: *Sto x3) -8/Storage History --------- Turn | Location | Event 1 | -11/Scrapyard | Discovered new exit (range 3) 7 | -11/Scrapyard | Entered Materials 276 | -10/Materials | Discovered new exit (range 16) 315 | -10/Materials | Build established: Mutant 356 | -10/Materials | Entered another Materials area 356 | -9/Materials | Evolved 2 slots: Utility x2 1015 | -9/Materials | Destroyed 8 combat bots 1016 | -9/Materials | Lost 3 parts (1p1u1w) 1332 | -9/Materials | Discovered new exit (range 18) 1371 | -9/Materials | Entered another Materials area 1371 | -8/Materials | Evolved 2 slots: Utility x2 1673 | -8/Materials | Build established: Hauler-Mutant 1789 | -8/Materials | Discovered new exit (range 8) 1978 | -8/Materials | Discovered new exit (range 18) 2081 | -8/Materials | Garrison activated, responded to threat 2104 | -8/Materials | Lost 3 parts (1p2w) 2180 | -8/Materials | Destroyed 7 combat bots 2192 | -8/Materials | Core integrity fell below 50% 2230 | -8/Materials | Discovered new exit (range 17) 2251 | -8/Materials | Identified exit to Garrison 2251 | -8/Materials | Entered Garrison 2353 | -8/Garrison | Triggered checkpoint 2378 | -8/Garrison | Triggered checkpoint 2441 | -8/Garrison | Discovered new exit (range 10) 2633 | -8/Garrison | Discovered new exit (range 12) 2715 | -8/Garrison | Triggered checkpoint 2834 | -8/Garrison | Triggered checkpoint 2878 | -8/Garrison | Lost 4 parts (1p1n2w) 3052 | -8/Garrison | Triggered checkpoint 3065 | -8/Garrison | Discovered new exit (range 14) 3116 | -8/Garrison | Installed Relay Interface Framework 3346 | -8/Garrison | Triggered checkpoint 3411 | -8/Garrison | Garrison Relay disabled 3673 | -8/Garrison | Garrison Relay disabled 3765 | -8/Garrison | Build established: Scavenger-Mutant 3853 | -8/Garrison | Entered Storage 3869 | -8/Storage | Met a pair of Derelict thieves 3984 | -8/Storage | Core integrity fell below 20% 4004 | -8/Storage | Destroyed 9 combat bots 4011 | -8/Storage | Lost 3 parts (2u1w) 4202 | -8/Storage | Build established: Hauler-Mutant 4253 | -8/Storage | First assault squad dispatched 4312 | -8/Storage | Destroyed by G-50 Soldier with Heavy Laser Last Messages --------------- T-07 Excavator is excavating. U-05 Engineer lays Concrete. K-01 Serf collects debris. U-05 Engineer lays Concrete. C-30 ARC bursts open, deploying its payload. G-50 Soldier unfolds itself. G-47 Trooper unfolds itself. M-28 Smith unfolds itself. U-05 Engineer lays Concrete. K-01 Serf collects debris. U-05 Engineer lays Concrete. G-47 Trooper destroyed. K-01 Serf destroyed. Mni. Grenade Launcher destroyed. U-05 Engineer builds a Wall. Adv. Treads destroyed. K-01 Serf collects debris. U-05 Engineer lays Concrete. U-05 Engineer builds a Wall. U-05 Engineer lays Concrete. Map ----- +----------------------------------------------------+ | ?????????????????????????????????????????????????? | | ?????????????????????????????????????????????????? | | ?????????????????????????????????????????????????? | | ?????????????????????????????????????????????????? | | ?????????????????????????????????????????????????? | | ?????????????????????????????????????????????????? | | ?????????????????????????????????????????????????? | | ?????????????????????????????????????????????????? | | ?????????????????????????????????????????????????? | | ?????????????????????????????????????????????????? | | ?????????????????????????????????????????????????? | | ?????????????????????????????????????????????????? | | ?????????????????????????????????????????????????? | | ?????????????????????????????????????????????????? | | ???????????????????????#####+#??"R???????????????? | | ??????????????????????## ###"????????????????? | | ?????????????????????? "" ?????????????????? | | ??????????????????????? T ?????????????????? | | ???????????????????????t!%= ??????????????????? | | ??????????????????????? g g ???????????????????? | | ???????????????????????# % #???????# ??????????? | | ???????????????????????# g%% #?????###+#######???? | | ???????????????????????# *####???# #???? | | ???????????????????????# k#u #???# ! #???? | | ???????????????????????# u #???? #???? | | ????????????????????????#@ #????# """ """ #???? | | ????????????????????????# ###????# """ """=#???? | | ????????????????????????# r#??????# """ """%#???? | | ????????????????????????# w#??????# *!#???? | | ???????????????????????## ##?????# =!%!#??## | | ???????????????????????# ##############/##### | | ???????????????????????# % % | | ???????????????????????# %= | | ???????????????????????# | | ???????????????????????# ####/############### | | ???????????????????????####### % #???????# ## | | ?????????????????????????????# #??###### # | | ?????????????????????????????#% """ #### * *#= # | | ?????????????????????????????# """ ""## %# | | ?????????????????????????????#! """ Y"##** = / | | ?????????????????????????????# """ ""## [ # | | ?????????????????????????????# """ ####** # = | | ?????????????????????????????# #??#*** # | | ?????????????????????????????# ! #??###### | | ?????????????????????????????####T### #???????#### | | ?????????????????????????????????##??##??????????# | | ?????????????????????????????????????????######??# | | ?????????????????????????????????????????#= = #### | | ?????????????????????????????????????????# == #T## | | ?????????????????????????????????????????# " + | +----------------------------------------------------+ Best States ------------- Heat Dissipation 45 Energy Generation 14 Energy Capacity 280 Matter Stores 300 Matter Capacity 300 Sight Range 18 Robot Scan Range 13 Terrain Scan Range 20 Terrain Scan Density 10 Base Temperature (-) 100 Armor Coverage 150 Utility Shielding 66 Evasion (%) 44 Targeting Accuracy 8 Target Analysis 5 Armor Integrity Analysis 33 Recoil Reduction 2 Item Schematics ----------------- ECM Suite | -10/Materials | Hacked Com. Wheel | -10/Materials | Hacked Hcp. Storage Unit | -9/Materials | Hacked Adv. Signal Interpreter | -8/Materials | Scanalyzed Robot Schematics ------------------ None Fabricated ------------ Nothing Alien Tech Used ----------------- None Achievements -------------- None Challenges ------------ None Game ------ Seed ThrusterSkeletonSource Manual? 0 Play Time 00:28:32 Cumulative 170.9 hours Start 2020.12.13 @ 20:49:48 End 2020.12.13 @ 21:31:49 Sessions 1 Manual Loads 0 Difficulty Rogue Special Mode None Game No. 204 Rogue 204 Adventurer 0 Explorer 0 Win Type - Total 2 Types 2/0/0/0/0/0/0/0/0 Lore% 56 Gallery% 75 Achievement% 55 Wizard Run 0 Options --------- ASCII 0 Keyboard 0 Movement Mouse Keybinds 1 Fullscreen 2 Font 24/Smallcaps Map View 76x50 Tactical HUD 1 Map Filters NONE Filters NONE Steam 1 RUN: 8e388c05-ffbb-4484-846f-9155aa6b5318